fUST/lending_fUST_20250210
["ID","MTS","AMOUNT","RATE_DAILY","PERIOD"]
[352598165,1739188245350,-500.0,0.0001178,2]
[352598166,1739188245360,-570.59,0.0001178,2]
[352598167,1739188245370,-500.0,0.0001178,2]
[352598168,1739188245380,-500.0,0.0001178,2]
[352598169,1739188245389,-500.0,0.0001178,2]
[352598170,1739188245399,-599.48,0.0001178,2]
[352598171,1739188245408,-500.0,0.0001178,2]
[352598172,1739188245418,-500.0,0.0001178,2]
[352598173,1739188245428,-500.0,0.0001178,2]
[352598174,1739188245438,-500.0,0.0001178,2]
[352598175,1739188245448,-500.0,0.0001178,2]
[352598176,1739188245458,-500.0,0.0001178,2]
[352598177,1739188245467,-500.0,0.0001178,2]
[352598178,1739188245476,-500.0,0.0001178,2]
[352598179,1739188245486,-576.64,0.0001178,2]
[352598180,1739188245496,-500.0,0.0001178,2]
[352598181,1739188245506,-603.82,0.0001178,2]
[352598182,1739188245515,-500.0,0.0001178,2]
[352598183,1739188245525,-500.0,0.0001178,2]
[352598184,1739188245535,-758.44,0.0001178,2]
[352598185,1739188245545,-500.0,0.0001178,2]
[352598186,1739188245555,-500.0,0.0001178,2]
[352598187,1739188245565,-500.0,0.0001178,2]
[352598188,1739188245574,-619.52,0.0001178,2]
[352598189,1739188245585,-500.0,0.0001178,2]
[352598190,1739188245596,-500.0,0.0001178,2]
[352598191,1739188245606,-1491.61,0.0001178,2]
[352598192,1739188245615,-552.74,0.0001178,2]
[352598193,1739188245625,-2010.96,0.0001178,2]
[352598194,1739188245635,-500.0,0.0001178,2]
[352598195,1739188245644,-6863.67,0.0001178,2]
[352598208,1739188245754,-708.26,0.0001178,2]
[352598211,1739188245783,-1938.56,0.0001178,2]
[352598213,1739188245792,-500.0,0.0001178,2]
[352598216,1739188245802,-3219.3,0.0001178,2]
[352598219,1739188245811,-500.0,0.0001178,2]
[352598222,1739188245821,-500.0,0.0001178,2]
[352598224,1739188245831,-1637.11,0.0001178,2]
[352598227,1739188245841,-1567.46,0.0001178,2]
[352598229,1739188245851,-608.3,0.0001178,2]
[352598232,1739188245862,-500.0,0.0001178,2]
[352598233,1739188245872,-886.59,0.0001178,2]
[352598236,1739188245882,-585.25,0.0001178,2]
[352598238,1739188245892,-20200.07,0.0001178,2]
[352598239,1739188245903,-631.96,0.0001178,2]
[352598243,1739188245913,-938.32,0.0001178,2]
[352598246,1739188245924,-8097.26,0.0001178,2]
[352598248,1739188245935,-500.0,0.0001178,2]
[352598249,1739188245945,-500.0,0.0001178,2]
[352598250,1739188245954,-500.0,0.0001178,2]
[352598251,1739188245963,-521.69,0.0001178,2]
[352598252,1739188245974,-528.6,0.0001178,2]
[352598254,1739188245985,-870.19,0.0001178,2]
[352598256,1739188245996,-1281.1,0.0001178,2]
[352598258,1739188246009,-500.0,0.0001178,2]
[352598261,1739188246019,-924.79,0.0001178,2]
[352598262,1739188246033,-500.0,0.0001178,2]
[352598263,1739188246045,-791.09,0.0001178,2]
[352598264,1739188246056,-500.0,0.0001178,2]
[352598265,1739188246067,-500.0,0.0001178,2]
[352598266,1739188246079,-880.78,0.0001178,2]
[352598267,1739188246091,-1762.12,0.0001178,2]
[352598268,1739188246102,-3760.35,0.0001178,2]
[352598269,1739188246112,-1504.86,0.0001178,2]
[352598270,1739188246124,-899.06,0.0001178,2]
[352598271,1739188246139,-816.13,0.0001178,2]
[352598272,1739188246149,-1626.04,0.0001178,2]
[352598273,1739188246160,-1151.91,0.0001178,2]
[352598274,1739188246170,-889.26,0.0001178,2]
[352598275,1739188246183,-500.0,0.0001178,2]
[352598276,1739188246195,-661.01,0.0001178,2]
[352598277,1739188246205,-500.0,0.0001178,2]
[352598278,1739188246216,-500.0,0.0001178,2]
[352598279,1739188246226,-597.3,0.0001178,2]
[352598280,1739188246236,-468.8,0.0001178,2]
[352598281,1739188246247,-5077.16345964,0.00011917,5]
[352598282,1739188246257,-394.98875047,0.00011917,2]
[352598283,1739188246266,-500.0,0.00011917,2]
[352598284,1739188246279,-766.47,0.00011917,2]
[352598285,1739188246288,-500.0,0.00011917,2]
[352598286,1739188246298,-570.59,0.00011917,2]
[352598287,1739188246309,-500.0,0.00011917,2]
[352598288,1739188246318,-500.0,0.00011917,2]
[352598289,1739188246329,-500.0,0.00011917,2]
[352598290,1739188246338,-599.48,0.00011917,2]
[352598291,1739188246348,-500.0,0.00011917,2]
[352598292,1739188246357,-500.0,0.00011917,2]
[352598293,1739188246367,-500.0,0.00011917,2]
[352598294,1739188246377,-500.0,0.00011917,2]
[352598295,1739188246386,-500.0,0.00011917,2]
[352598296,1739188246396,-500.0,0.00011917,2]
[352598297,1739188246405,-479.79941578,0.00011917,2]
[352598298,1739188246415,-576.64,0.00011917,2]
[352598299,1739188246424,-500.0,0.00011917,2]
[352598300,1739188246434,-603.82,0.00011917,2]
[352598301,1739188246444,-500.0,0.00011917,2]
[352598302,1739188246454,-500.0,0.00011917,2]
[352598303,1739188246464,-758.44,0.00011917,2]
[352598304,1739188246474,-500.0,0.00011917,2]
[352598305,1739188246484,-500.0,0.00011917,2]
[352598306,1739188246493,-619.52,0.00011917,2]
[352598307,1739188246504,-500.0,0.00011917,2]
[352598308,1739188246513,-1491.61,0.00011917,2]
[352598309,1739188246523,-552.74,0.00011917,2]
[352598310,1739188246533,-2010.96,0.00011917,2]
[352598311,1739188246542,-500.0,0.00011917,2]
[352598312,1739188246551,-6863.67,0.00011917,2]
[352598313,1739188246561,-708.26,0.00011917,2]
[352598314,1739188246571,-1938.56,0.00011917,2]
[352598315,1739188246581,-500.0,0.00011917,2]
[352598316,1739188246590,-3219.3,0.00011917,2]
[352598317,1739188246599,-500.0,0.00011917,2]
[352598318,1739188246609,-500.0,0.00011917,2]
[352598319,1739188246619,-1637.11,0.00011917,2]
[352598320,1739188246628,-1567.46,0.00011917,2]
[352598321,1739188246637,-608.3,0.00011917,2]
[352598322,1739188246647,-500.0,0.00011917,2]
[352598323,1739188246656,-886.59,0.00011917,2]
[352598324,1739188246666,-585.25,0.00011917,2]
[352598325,1739188246676,-20200.07,0.00011917,2]
[352598326,1739188246686,-631.96,0.00011917,2]
[352598327,1739188246696,-938.32,0.00011917,2]
[352598328,1739188246706,-8097.26,0.00011917,2]
[352598329,1739188246716,-500.0,0.00011917,2]
[352598330,1739188246725,-500.0,0.00011917,2]
[352598331,1739188246735,-500.0,0.00011917,2]
[352598332,1739188246744,-521.69,0.00011917,2]
[352598333,1739188246754,-528.6,0.00011917,2]
[352598334,1739188246764,-870.19,0.00011917,2]
[352598335,1739188246776,-1281.1,0.00011917,2]
[352598336,1739188246786,-500.0,0.00011917,2]
[352598337,1739188246795,-924.79,0.00011917,2]
[352598338,1739188246805,-258.34,0.00011917,2]
[352598339,1739188246814,-791.09,0.00011917,2]
[352598340,1739188246823,-500.0,0.00011917,2]
[352598341,1739188246833,-500.0,0.00011917,2]
[352598342,1739188246843,-880.78,0.00011917,2]
[352598343,1739188246853,-1762.12,0.00011917,2]
[352598344,1739188246863,-3760.35,0.00011917,2]
[352598345,1739188246872,-1504.86,0.00011917,2]
[352598346,1739188246882,-899.06,0.00011917,2]
[352598347,1739188246892,-816.13,0.00011917,2]
[352598348,1739188246901,-1626.04,0.00011917,2]
[352598349,1739188246911,-1151.91,0.00011917,2]
[352598350,1739188246921,-889.26,0.00011917,2]
[352598351,1739188246930,-500.0,0.00011917,2]
[352598352,1739188246940,-661.01,0.00011917,2]
[352598353,1739188246950,-500.0,0.00011917,2]
[352598354,1739188246960,-500.0,0.00011917,2]
[352598355,1739188246970,-315.36689601,0.00011954,2]
[352598356,1739188246981,-500.0,0.00012021,2]
[352598357,1739188246992,-822.14791884,0.00012021,2]
[352598358,1739188247003,-1000.0,0.00012021,2]
[352598359,1739188247014,-1000.0,0.00012021,2]
[352598360,1739188247026,-500.0,0.00012021,2]
[352598361,1739188247036,-784.52277104,0.00012021,2]
[352598362,1739188247047,-504.93731554,0.00012021,2]
[352598363,1739188247057,-502.27251224,0.00012021,2]
[352598364,1739188247067,-1000.0,0.00012021,2]
[352598365,1739188247077,-1000.59239481,0.00012021,2]
[352598366,1739188247087,-1000.0,0.00012021,2]
[352598367,1739188247098,-531.26523494,0.00012021,2]
[352598368,1739188247108,-500.0,0.00012054,2]
[352598369,1739188247118,-766.47,0.00012054,2]
[352598370,1739188247128,-500.0,0.00012054,2]
[352598371,1739188247142,-570.59,0.00012054,2]
[352598372,1739188247153,-500.0,0.00012054,2]
[352598373,1739188247163,-500.0,0.00012054,2]
[352598374,1739188247175,-599.48,0.00012054,2]
[352598375,1739188247185,-500.0,0.00012054,2]
[352598376,1739188247198,-500.0,0.00012054,2]
[352598377,1739188247208,-500.0,0.00012054,2]
[352598378,1739188247220,-500.0,0.00012054,2]
[352598379,1739188247230,-500.0,0.00012054,2]
[352598380,1739188247240,-500.0,0.00012054,2]
[352598381,1739188247250,-576.64,0.00012054,2]
[352598382,1739188247260,-500.0,0.00012054,2]
[352598383,1739188247269,-603.82,0.00012054,2]
[352598384,1739188247279,-500.0,0.00012054,2]
[352598385,1739188247289,-500.0,0.00012054,2]
[352598386,1739188247299,-758.44,0.00012054,2]
[352598387,1739188247308,-500.0,0.00012054,2]
[352598388,1739188247318,-500.0,0.00012054,2]
[352598389,1739188247327,-619.52,0.00012054,2]
[352598390,1739188247337,-500.0,0.00012054,2]
[352598391,1739188247346,-1491.61,0.00012054,2]
[352598392,1739188247355,-552.74,0.00012054,2]
[352598393,1739188247365,-2010.96,0.00012054,2]
[352598394,1739188247374,-500.0,0.00012054,2]
[352598395,1739188247383,-6863.67,0.00012054,2]
[352598396,1739188247392,-708.26,0.00012054,2]
[352598397,1739188247401,-1938.56,0.00012054,2]
[352598398,1739188247411,-290.86,0.00012054,2]
[352598399,1739188247420,-3219.3,0.00012054,2]
[352598400,1739188247429,-500.0,0.00012054,2]
[352598401,1739188247438,-500.0,0.00012054,2]
[352598402,1739188247448,-1637.11,0.00012054,2]
[352598403,1739188247457,-1567.46,0.00012054,2]
[352598404,1739188247467,-608.3,0.00012054,2]
[352598405,1739188247476,-500.0,0.00012054,2]
[352598406,1739188247486,-886.59,0.00012054,2]
[352598407,1739188247495,-585.25,0.00012054,2]
[352598408,1739188247504,-20200.07,0.00012054,2]
[352598409,1739188247514,-631.96,0.00012054,2]
[352598410,1739188247524,-938.32,0.00012054,2]
[352598411,1739188247534,-8097.26,0.00012054,2]
[352598412,1739188247544,-500.0,0.00012054,2]
[352598413,1739188247554,-500.0,0.00012054,2]
[352598414,1739188247563,-500.0,0.00012054,2]
[352598415,1739188247572,-521.69,0.00012054,2]
[352598416,1739188247582,-528.6,0.00012054,2]
[352598417,1739188247591,-870.19,0.00012054,2]
[352598418,1739188247601,-1281.1,0.00012054,2]
[352598419,1739188247610,-500.0,0.00012054,2]
[352598420,1739188247619,-924.79,0.00012054,2]
[352598421,1739188247628,-791.09,0.00012054,2]
[352598422,1739188247637,-500.0,0.00012054,2]
[352598423,1739188247647,-500.0,0.00012054,2]
[352598424,1739188247655,-880.78,0.00012054,2]
[352598425,1739188247665,-1762.12,0.00012054,2]
[352598426,1739188247674,-3760.35,0.00012054,2]
[352598427,1739188247683,-1504.86,0.00012054,2]
[352598428,1739188247692,-899.06,0.00012054,2]
[352598429,1739188247702,-816.13,0.00012054,2]
[352598430,1739188247803,-1626.04,0.00012054,2]
[352598431,1739188247814,-1151.91,0.00012054,2]
[352598432,1739188247823,-889.26,0.00012054,2]
[352598433,1739188247833,-500.0,0.00012054,2]
[352598434,1739188247843,-661.01,0.00012054,2]
[352598435,1739188247854,-500.0,0.00012054,2]
[352598436,1739188247864,-500.0,0.00012054,2]
[352598437,1739188247873,-284.61722054,0.00012091,2]
[352598438,1739188247883,-500.0,0.00012191,2]
[352598439,1739188247892,-766.47,0.00012191,2]
[352598440,1739188247903,-500.0,0.00012191,2]
[352598441,1739188247913,-570.59,0.00012191,2]
[352598442,1739188247922,-500.0,0.00012191,2]
[352598443,1739188247932,-500.0,0.00012191,2]
[352598444,1739188247941,-599.48,0.00012191,2]
[352598445,1739188247951,-500.0,0.00012191,2]
[352598446,1739188247961,-500.0,0.00012191,2]
[352598447,1739188247971,-500.0,0.00012191,2]
[352598448,1739188247980,-500.0,0.00012191,2]
[352598449,1739188247991,-500.0,0.00012191,2]
[352598450,1739188248001,-576.64,0.00012191,2]
[352598451,1739188248011,-500.0,0.00012191,2]
[352598452,1739188248021,-603.82,0.00012191,2]
[352598453,1739188248032,-500.0,0.00012191,2]
[352598454,1739188248043,-500.0,0.00012191,2]
[352598455,1739188248054,-758.44,0.00012191,2]
[352598456,1739188248065,-500.0,0.00012191,2]
[352598457,1739188248075,-500.0,0.00012191,2]
[352598458,1739188248085,-619.52,0.00012191,2]
[352598459,1739188248096,-367.74081723,0.00012191,2]
[352598460,1739188248107,-1491.61,0.00012191,2]
[352598461,1739188248117,-552.74,0.00012191,2]
[352598462,1739188248130,-2010.96,0.00012191,2]
[352598463,1739188248147,-500.0,0.00012191,2]
[352598464,1739188248157,-6863.67,0.00012191,2]
[352598465,1739188248168,-708.26,0.00012191,2]
[352598466,1739188248180,-1938.56,0.00012191,2]
[352598467,1739188248192,-3219.3,0.00012191,2]
[352598468,1739188248203,-500.0,0.00012191,2]
[352598469,1739188248213,-500.0,0.00012191,2]
[352598470,1739188248224,-1637.11,0.00012191,2]
[352598471,1739188248234,-1567.46,0.00012191,2]
[352598472,1739188248245,-608.3,0.00012191,2]
[352598473,1739188248255,-500.0,0.00012191,2]
[352598474,1739188248266,-886.59,0.00012191,2]
[352598475,1739188248277,-585.25,0.00012191,2]
[352598476,1739188248287,-20200.07,0.00012191,2]
[352598477,1739188248297,-631.96,0.00012191,2]
[352598478,1739188248309,-938.32,0.00012191,2]
[352598479,1739188248319,-8097.26,0.00012191,2]
[352598480,1739188248330,-254.66862441,0.00012191,2]
[352598481,1739188248341,-500.0,0.00012191,2]
[352598482,1739188248352,-500.0,0.00012191,2]
[352598483,1739188248362,-521.69,0.00012191,2]
[352598484,1739188248374,-528.6,0.00012191,2]
[352598485,1739188248386,-870.19,0.00012191,2]
[352598486,1739188248399,-1281.1,0.00012191,2]
[352598487,1739188248411,-500.0,0.00012191,2]
[352598488,1739188248422,-924.79,0.00012191,2]
[352598489,1739188248434,-791.09,0.00012191,2]
[352598490,1739188248446,-500.0,0.00012191,2]
[352598491,1739188248459,-500.0,0.00012191,2]
[352598492,1739188248470,-880.78,0.00012191,2]
[352598493,1739188248481,-1762.12,0.00012191,2]
[352598494,1739188248493,-3760.35,0.00012191,2]
[352598495,1739188248503,-1504.86,0.00012191,2]
[352598496,1739188248515,-899.06,0.00012191,2]
[352598497,1739188248525,-816.13,0.00012191,2]
[352598498,1739188248539,-1626.04,0.00012191,2]
[352598499,1739188248550,-1151.91,0.00012191,2]
[352598500,1739188248560,-889.26,0.00012191,2]
[352598501,1739188248572,-500.0,0.00012191,2]
[352598502,1739188248583,-661.01,0.00012191,2]
[352598503,1739188248595,-500.0,0.00012191,2]
[352598504,1739188248607,-500.0,0.00012191,2]
[352598505,1739188248618,-500.0,0.00012328,2]
[352598506,1739188248630,-766.47,0.00012328,2]
[352598507,1739188248640,-500.0,0.00012328,2]
[352598508,1739188248652,-570.59,0.00012328,2]
[352598509,1739188248664,-500.0,0.00012328,2]
[352598510,1739188248675,-500.0,0.00012328,2]
[352598511,1739188248686,-599.48,0.00012328,2]
[352598512,1739188248696,-500.0,0.00012328,2]
[352598513,1739188248707,-500.0,0.00012328,2]
[352598514,1739188248718,-500.0,0.00012328,2]
[352598515,1739188248730,-500.0,0.00012328,2]
[352598516,1739188248742,-500.0,0.00012328,2]
[352598517,1739188248754,-576.64,0.00012328,2]
[352598518,1739188248765,-215.85577899,0.00012328,2]
[352598519,1739188248778,-603.82,0.00012328,2]
[352598520,1739188248789,-500.0,0.00012328,2]
[352598521,1739188248801,-500.0,0.00012328,2]
[352598522,1739188248811,-758.44,0.00012328,2]
[352598523,1739188248822,-500.0,0.00012328,2]
[352598524,1739188248833,-500.0,0.00012328,2]
[352598525,1739188248844,-619.52,0.00012328,2]
[352598526,1739188248855,-1491.61,0.00012328,2]
[352598527,1739188248865,-552.74,0.00012328,2]
[352598528,1739188248876,-2010.96,0.00012328,2]
[352598529,1739188248887,-500.0,0.00012328,2]
[352598530,1739188248898,-6863.67,0.00012328,2]
[352598531,1739188248909,-708.26,0.00012328,2]
[352598532,1739188248921,-1938.56,0.00012328,2]
[352598533,1739188248932,-3219.3,0.00012328,2]
[352598534,1739188248943,-500.0,0.00012328,2]
[352598535,1739188248954,-500.0,0.00012328,2]
[352598536,1739188248965,-1637.11,0.00012328,2]
[352598537,1739188248975,-1567.46,0.00012328,2]
[352598538,1739188248987,-608.3,0.00012328,2]
[352598539,1739188248998,-500.0,0.00012328,2]
[352598540,1739188249010,-886.59,0.00012328,2]
[352598541,1739188249022,-585.25,0.00012328,2]
[352598542,1739188249032,-20200.07,0.00012328,2]
[352598543,1739188249043,-631.96,0.00012328,2]
[352598544,1739188249054,-938.32,0.00012328,2]
[352598545,1739188249065,-8097.26,0.00012328,2]
[352598546,1739188249077,-500.0,0.00012328,2]
[352598547,1739188249087,-500.0,0.00012328,2]
[352598548,1739188249100,-521.69,0.00012328,2]
[352598549,1739188249111,-528.6,0.00012328,2]
[352598550,1739188249122,-870.19,0.00012328,2]
[352598551,1739188249134,-1281.1,0.00012328,2]
[352598552,1739188249149,-500.0,0.00012328,2]
[352598553,1739188249160,-924.79,0.00012328,2]
[352598554,1739188249171,-791.09,0.00012328,2]
[352598555,1739188249183,-500.0,0.00012328,2]
[352598556,1739188249194,-500.0,0.00012328,2]
[352598557,1739188249205,-880.78,0.00012328,2]
[352598558,1739188249215,-1762.12,0.00012328,2]
[352598559,1739188249226,-3760.35,0.00012328,2]
[352598560,1739188249236,-1504.86,0.00012328,2]
[352598561,1739188249248,-899.06,0.00012328,2]
[352598562,1739188249258,-816.13,0.00012328,2]
[352598563,1739188249269,-1626.04,0.00012328,2]
[352598564,1739188249281,-1151.91,0.00012328,2]
[352598565,1739188249292,-889.26,0.00012328,2]
[352598566,1739188249302,-500.0,0.00012328,2]
[352598567,1739188249312,-661.01,0.00012328,2]
[352598568,1739188249322,-500.0,0.00012328,2]
[352598569,1739188249332,-151.0,0.00012328,2]
[352598570,1739188249342,-500.0,0.00012328,2]
[352598571,1739188249353,-151.0,0.000124,2]
[352598572,1739188249364,-423.539,0.00012465,2]
[352598573,1739188249375,-500.0,0.00012465,2]
[352598574,1739188249385,-766.47,0.00012465,2]
[352598575,1739188249396,-500.0,0.00012465,2]
[352598576,1739188249407,-570.59,0.00012465,2]
[352598577,1739188249417,-500.0,0.00012465,2]
[352598578,1739188249427,-500.0,0.00012465,2]
[352598579,1739188249437,-599.48,0.00012465,2]
[352598580,1739188249448,-500.0,0.00012465,2]
[352598581,1739188249465,-500.0,0.00012465,2]
[352598582,1739188249475,-384.97481335,0.00012465,2]
[352598583,1739188249485,-500.0,0.00012465,2]
[352598584,1739188249495,-500.0,0.00012465,2]
[352598585,1739188249505,-576.64,0.00012465,2]
[352598586,1739188249516,-603.82,0.00012465,2]
[352598587,1739188249527,-500.0,0.00012465,2]
[352598588,1739188249538,-500.0,0.00012465,2]
[352598589,1739188249549,-758.44,0.00012465,2]
[352598590,1739188249561,-500.0,0.00012465,2]
[352598591,1739188249572,-500.0,0.00012465,2]
[352598592,1739188249582,-619.52,0.00012465,2]
[352598593,1739188249592,-1491.61,0.00012465,2]
[352598594,1739188249601,-552.74,0.00012465,2]
[352598595,1739188249612,-151.0,0.00012465,2]
[352598596,1739188249621,-2010.96,0.00012465,2]
[352598597,1739188249631,-151.0,0.00012465,2]
[352598598,1739188249641,-500.0,0.00012465,2]
[352598599,1739188249650,-6863.67,0.00012465,2]
[352598600,1739188249660,-708.26,0.00012465,2]
[352598601,1739188249670,-1938.56,0.00012465,2]
[352598602,1739188249680,-3219.3,0.00012465,2]
[352598603,1739188249689,-409.48,0.00012465,2]
[352598604,1739188249698,-1637.11,0.00012465,2]
[352598605,1739188249708,-1567.46,0.00012465,2]
[352598606,1739188249717,-608.3,0.00012465,2]
[352598607,1739188249727,-500.0,0.00012465,2]
[352598608,1739188249811,-886.59,0.00012465,2]
[352598609,1739188249821,-585.25,0.00012465,2]
[352598610,1739188249830,-20200.07,0.00012465,2]
[352598611,1739188249839,-631.96,0.00012465,2]
[352598612,1739188249848,-938.32,0.00012465,2]
[352598613,1739188249857,-8097.26,0.00012465,2]
[352598614,1739188249866,-233.81066298,0.00012465,2]
[352598615,1739188249875,-500.0,0.00012465,2]
[352598616,1739188249885,-521.69,0.00012465,2]
[352598617,1739188249895,-528.6,0.00012465,2]
[352598618,1739188249904,-870.19,0.00012465,2]
[352598619,1739188249913,-1281.1,0.00012465,2]
[352598620,1739188249922,-532.59101627,0.00012465,2]
[352598621,1739188249932,-924.79,0.00012465,2]
[352598622,1739188249942,-791.09,0.00012465,2]
[352598623,1739188249952,-500.0,0.00012465,2]
[352598624,1739188249961,-500.0,0.00012465,2]
[352598625,1739188249970,-880.78,0.00012465,2]
[352598626,1739188249980,-1762.12,0.00012465,2]
[352598627,1739188249989,-3760.35,0.00012465,2]
[352598628,1739188249999,-1504.86,0.00012465,2]
[352598629,1739188250009,-899.06,0.00012465,2]
[352598630,1739188250018,-816.13,0.00012465,2]
[352598631,1739188250028,-1626.04,0.00012465,2]
[352598632,1739188250038,-1151.91,0.00012465,2]
[352598633,1739188250047,-889.26,0.00012465,2]
[352598634,1739188250056,-624.47,0.00012465,2]
[352598635,1739188250066,-661.01,0.00012465,2]
[352598636,1739188250075,-500.0,0.00012465,2]
[352598637,1739188250085,-151.0,0.00012465,2]
[352598638,1739188250094,-500.0,0.00012465,2]
[352598639,1739188250103,-13074.96087049,0.00012594,2]
[352598640,1739188250112,-500.0,0.00012602,2]
[352598641,1739188250121,-766.47,0.00012602,2]
[352598642,1739188250131,-500.0,0.00012602,2]
[352598643,1739188250143,-570.59,0.00012602,2]
[352598644,1739188250153,-157.15567255,0.00012602,2]
[352598645,1739188250163,-500.0,0.00012602,2]
[352598646,1739188250172,-599.48,0.00012602,2]
[352598647,1739188250182,-500.0,0.00012602,2]
[352598648,1739188250191,-500.0,0.00012602,2]
[352598649,1739188250200,-500.0,0.00012602,2]
[352598650,1739188250209,-500.0,0.00012602,2]
[352598651,1739188250219,-576.64,0.00012602,2]
[352598652,1739188250229,-603.82,0.00012602,2]
[352598653,1739188250238,-500.0,0.00012602,2]
[352598654,1739188250247,-151.0,0.00012602,2]
[352598655,1739188250256,-151.0,0.00012602,2]
[352598656,1739188250265,-500.0,0.00012602,2]
[352598657,1739188250275,-758.44,0.00012602,2]
[352598658,1739188250285,-151.0,0.00012602,2]
[352598659,1739188250294,-500.0,0.00012602,2]
[352598660,1739188250303,-151.0,0.00012602,2]
[352598661,1739188250312,-500.0,0.00012602,2]
[352598662,1739188250322,-619.52,0.00012602,2]
[352598663,1739188250330,-151.234386,0.00012602,2]
[352598664,1739188250340,-1491.61,0.00012602,2]
[352598665,1739188250351,-151.0,0.00012602,2]
[352598666,1739188250359,-151.0,0.00012602,2]
[352598667,1739188250368,-552.74,0.00012602,2]
[352598668,1739188250378,-151.0,0.00012602,2]
[352598669,1739188250388,-151.0,0.00012602,2]
[352598670,1739188250398,-2010.96,0.00012602,2]
[352598671,1739188250407,-500.0,0.00012602,2]
[352598672,1739188250416,-151.0,0.00012602,2]
[352598673,1739188250425,-151.0,0.00012602,2]
[352598674,1739188250435,-6863.67,0.00012602,2]
[352598675,1739188250443,-151.0,0.00012602,2]
[352598676,1739188250452,-708.26,0.00012602,2]
[352598677,1739188250462,-1938.56,0.00012602,2]
[352598678,1739188250471,-3219.3,0.00012602,2]
[352598679,1739188250481,-151.0,0.00012602,2]
[352598680,1739188250490,-151.0,0.00012602,2]
[352598681,1739188250499,-1637.11,0.00012602,2]
[352598682,1739188250508,-1567.46,0.00012602,2]
[352598683,1739188250517,-608.3,0.00012602,2]
[352598684,1739188250528,-500.0,0.00012602,2]
[352598685,1739188250537,-886.59,0.00012602,2]
[352598686,1739188250546,-585.25,0.00012602,2]
[352598687,1739188250555,-20200.07,0.00012602,2]
[352598688,1739188250564,-631.96,0.00012602,2]
[352598689,1739188250577,-938.32,0.00012602,2]
[352598690,1739188250593,-8097.26,0.00012602,2]
[352598691,1739188250608,-500.0,0.00012602,2]
[352598692,1739188250620,-521.69,0.00012602,2]
[352598693,1739188250634,-528.6,0.00012602,2]
[352598694,1739188250648,-870.19,0.00012602,2]
[352598695,1739188250663,-1281.1,0.00012602,2]
[352598696,1739188250676,-924.79,0.00012602,2]
[352598697,1739188250692,-791.09,0.00012602,2]
[352598698,1739188250708,-500.0,0.00012602,2]
[352598699,1739188250722,-500.0,0.00012602,2]
[352598700,1739188250734,-880.78,0.00012602,2]
[352598701,1739188250748,-1762.12,0.00012602,2]
[352598702,1739188250762,-3760.35,0.00012602,2]
[352598703,1739188250773,-151.0,0.00012602,2]
[352598704,1739188250786,-1504.86,0.00012602,2]
[352598705,1739188250798,-899.06,0.00012602,2]